bitfinex/quotes_ETHUSD_20250623
["timestamp","ask_amount","ask_price","bid_price","bid_amount"]
[1750659000606,7.78624473,2256.2,2256.1,1.04446]
[1750659000773,7.78624473,2256.2,2256.1,0.7696]
[1750659000974,7.78624473,2256.4,2256.1,0.7696]
[1750659004415,7.78624473,2256.6,2256.1,0.7696]
[1750659004609,7.78624473,2256.4,2256.1,0.7696]
[1750659004909,7.78624473,2256.2,2256.1,0.7696]
[1750659005078,7.78624473,2256.3,2255.8,0.7601]
[1750659005275,7.78624473,2255.9,2255.8,0.7601]
[1750659005789,7.78624473,2256.2,2255.8,0.7601]
[1750659006624,7.78624473,2256.2,2255.9,1.12720685]
[1750659006831,7.78624473,2256.0,2255.8,0.7601]
[1750659007587,7.78624473,2256.0,2255.7,0.0616]
[1750659007788,7.78624473,2255.8,2255.7,0.0616]
[1750659008388,8.0519,2256.1,2255.7,0.0616]
[1750659008587,7.78624473,2255.9,2255.7,0.8244]
[1750659010427,7.78624473,2255.9,2255.7,0.0616]
[1750659019724,8.60524473,2255.9,2255.7,0.0616]
[1750659022413,0.7776,2255.6,2254.4,0.8189]
[1750659022746,0.7776,2255.6,2253.5,4.43734589]
[1750659022747,0.7776,2255.3,2254.6,0.8189]
[1750659022947,7.78624473,2255.1,2254.6,0.8189]
[1750659023306,7.78624473,2254.9,2254.6,0.8189]
[1750659023504,7.78624473,2254.9,2254.2,0.7835]
[1750659023505,7.78624473,2254.7,2254.2,0.7835]
[1750659023811,7.78624473,2254.7,2254.2,2.30549668]
[1750659024228,7.78624473,2254.7,2254.3,0.04435459]
[1750659024434,7.78624473,2254.7,2254.3,10.04435459]
[1750659024754,7.78624473,2254.7,2254.4,0.8304]
[1750659026954,0.7553,2255.1,2254.4,0.8304]
[1750659027155,7.78624473,2254.7,2254.5,1.08304]
[1750659029949,7.78624473,2254.7,2254.4,0.8304]
[1750659030173,7.78624473,2254.5,2254.2,0.787]
[1750659033268,9.75924473,2254.9,2254.3,4.43593434]
[1750659033988,9.75924473,2254.9,2254.2,5.22307193]
[1750659034559,0.783,2255.0,2254.2,0.787]
[1750659034858,1.973,2255.2,2254.6,0.7728]
[1750659035058,20.57544473,2255.3,2254.6,0.7728]
[1750659035254,7.78624473,2255.1,2254.6,1.29806081]
[1750659035692,7.78624473,2255.1,2254.6,0.7728]
[1750659036065,7.78624473,2254.9,2254.6,0.7728]
[1750659037503,7.78624473,2254.9,2254.7,0.0575]
[1750659038403,7.78624473,2255.1,2254.6,0.7728]
[1750659039377,7.78624473,2255.1,2254.7,0.0575]
[1750659039708,7.78624473,2255.1,2254.6,0.7728]
[1750659039871,7.78624473,2255.1,2254.6,1.7416489]
[1750659040272,7.78624473,2255.1,2254.8,0.0575]
[1750659042729,7.78624473,2255.1,2254.6,0.7728]
[1750659044783,10.8063,2255.6,2254.7,4.4793753]
[1750659044981,7.78624473,2255.7,2255.1,4.43439315]
[1750659045207,21.21854473,2255.9,2255.1,5.21868575]
[1750659045414,21.21854473,2255.9,2255.3,0.7843]
[1750659045621,28.47354473,2255.9,2255.3,0.7843]
[1750659045827,28.47354473,2255.9,2255.3,1.31058358]
[1750659047024,27.66724473,2255.9,2255.3,1.31058358]
[1750659047908,27.66624473,2255.9,2255.3,1.31058358]
[1750659050334,25.69224473,2255.9,2255.3,0.7843]
[1750659051427,25.69224473,2255.9,2255.3,0.82863503]
[1750659052119,18.43924473,2255.9,2255.3,4.47833216]
[1750659052444,10.653,2255.9,2255.4,0.7703]
[1750659052595,10.653,2255.9,2255.6,0.7703]
[1750659052796,0.7689,2256.3,2255.6,0.7703]
[1750659052995,7.78624473,2256.1,2255.6,0.7703]
[1750659053730,17.253,2256.2,2255.6,0.7703]
[1750659053731,7.78624473,2255.9,2255.6,0.7703]
[1750659056513,7.78624473,2255.9,2255.6,1.29070974]
[1750659056848,7.78624473,2255.9,2255.6,0.7703]
[1750659057419,7.78624473,2255.9,2255.6,0.8313]
[1750659057620,7.78624473,2255.9,2255.6,0.7703]
[1750659059134,7.78624473,2255.7,2255.4,0.061]
[1750659059316,7.78624473,2255.7,2255.4,0.8646]
[1750659060020,7.78624473,2255.7,2255.4,0.8036]
[1750659060219,7.78624473,2255.5,2255.4,0.8036]
[1750659060419,7.78624473,2255.5,2255.2,0.8405]
[1750659060619,7.78624473,2255.5,2255.3,1.08405]
[1750659061755,7.78624473,2255.5,2255.3,1.14505]
[1750659062657,7.78624473,2255.7,2255.3,1.14505]
[1750659064023,7.78624473,2255.7,2255.3,0.061]
[1750659064424,7.78624473,2255.8,2255.3,0.061]
[1750659065938,9.217,2256.0,2255.4,0.7608]
[1750659066139,17.00324473,2256.1,2255.4,0.7608]
[1750659066859,7.78624473,2255.9,2255.4,0.7608]
[1750659068365,8.59934473,2255.9,2255.4,0.7608]
[1750659074862,9.217,2256.1,2255.4,0.7608]
[1750659074863,7.248,2256.0,2255.4,0.7608]
[1750659075447,0.41592316,2255.9,2255.4,0.7608]
[1750659075685,7.248,2256.0,2255.4,0.7608]
[1750659075827,0.41593182,2255.9,2255.4,0.7608]
[1750659076033,7.78624473,2255.9,2255.4,0.7608]
[1750659076661,7.78624473,2255.7,2255.4,0.7608]
[1750659076863,7.78624473,2255.5,2255.0,0.7928]
[1750659077135,7.78624473,2255.4,2255.0,0.7928]
[1750659079276,7.78624473,2255.4,2254.8,0.8373]
[1750659080245,7.78624473,2255.0,2254.8,0.7753]
[1750659080651,15.03324473,2255.2,2254.8,0.7753]
[1750659080853,7.78624473,2255.4,2254.8,0.7753]
[1750659081049,9.215,2255.3,2254.9,0.062]
[1750659082870,0.7625,2255.6,2254.9,0.062]
[1750659083055,9.215,2255.5,2255.0,0.7753]
[1750659083985,7.78624473,2255.6,2255.0,0.7753]
[1750659084148,8.54104473,2255.8,2255.0,0.7753]
[1750659084350,9.215,2255.7,2255.0,0.7753]
[1750659088796,7.78624473,2255.6,2255.0,0.7753]
[1750659090578,7.246,2255.6,2255.0,0.7753]
[1750659090784,7.246,2255.6,2255.2,0.7782]
[1750659092459,15.03224473,2255.6,2255.2,1.85602]
[1750659092658,15.03224473,2255.6,2255.2,0.7782]
[1750659092860,7.246,2255.6,2255.2,0.8402]
[1750659093128,0.55,2256.5,2255.0,14.43456775]
[1750659093129,0.8216,2256.0,2255.0,13.16]
[1750659093304,4.2114,2257.1,2255.0,13.16]
[1750659093305,1.962,2256.1,2255.5,0.062]
[1750659093611,7.245,2256.0,2255.6,0.8686]
[1750659096119,7.245,2256.1,2255.6,0.8686]
[1750659098833,7.245,2256.1,2255.6,0.8186]
[1750659099631,7.245,2256.1,2255.6,0.7566]
[1750659103073,15.03124473,2256.1,2255.6,0.7566]
[1750659104166,7.245,2256.1,2255.6,0.7566]
[1750659104665,7.242,2256.0,2255.6,0.7566]
[1750659105028,7.242,2256.1,2255.6,0.7566]
[1750659106379,7.242,2256.1,2255.6,2.05425601]
[1750659106866,7.242,2256.1,2255.7,0.787]
[1750659107552,7.242,2256.1,2255.7,0.8493]
[1750659107867,7.242,2256.1,2255.7,0.787]
[1750659108068,1.961,2256.2,2255.8,0.0623]
[1750659108668,0.8149,2256.4,2256.0,0.806]
[1750659108669,9.202,2256.4,2256.0,0.806]
[1750659109037,9.9644,2256.4,2255.7,0.806]
[1750659109238,9.9644,2256.4,2255.7,1.68067435]
[1750659109455,9.9644,2256.4,2255.7,1.74297435]
[1750659110553,7.241,2256.3,2255.8,0.8241]
[1750659110758,7.241,2256.3,2255.9,0.0623]
[1750659111067,7.241,2256.3,2256.0,0.7507]
[1750659111238,7.241,2256.3,2256.0,0.813]
[1750659111784,7.24,2256.3,2256.0,0.813]
[1750659114098,7.24,2256.4,2256.0,0.7507]
[1750659114261,7.24,2256.4,2256.1,1.29065056]
[1750659114880,7.239,2256.4,2256.1,1.29065056]
[1750659115789,7.239,2256.4,2256.1,0.7723]
[1750659116289,15.02524473,2256.4,2255.9,0.7949]
[1750659116457,15.02524473,2256.4,2255.1,16.35805973]
[1750659116458,7.78624473,2256.0,2254.9,1.961]
[1750659116658,9.2,2255.9,2255.5,0.7949]
[1750659117691,16.98624473,2255.9,2255.1,0.7994]
[1750659117897,16.98624473,2255.9,2255.1,1.32903896]
[1750659118099,7.78624473,2255.7,2255.1,0.7994]
[1750659118394,0.7604,2255.8,2255.1,0.7994]
[1750659118762,0.7604,2255.8,2255.1,0.8617]
[1750659119965,7.78624473,2255.5,2255.1,0.7994]
[1750659120276,9.192,2255.4,2255.1,0.7994]
[1750659120477,9.192,2255.4,2255.0,0.753]
[1750659124802,9.9424,2255.4,2255.0,0.753]
[1750659125903,1.954,2255.4,2255.0,0.753]
[1750659128677,1.954,2255.4,2255.0,0.8153]
[1750659130793,0.7723,2255.8,2255.1,7.78624473]
[1750659131121,10.0,2256.0,2255.3,0.8714]
[1750659131122,19.192,2255.7,2255.3,0.8714]
[1750659131300,9.192,2255.7,2255.3,0.8091]
[1750659131493,9.192,2255.7,2255.3,0.8714]
[1750659132294,9.192,2255.7,2255.3,0.8091]
[1750659132594,10.0,2255.6,2255.3,0.8091]
[1750659133180,7.238,2255.6,2255.3,0.8091]
[1750659133384,1.954,2255.7,2255.3,0.8091]
[1750659133613,7.237,2255.6,2255.3,0.8091]
[1750659134016,0.7694,2256.0,2255.3,1.66863447]
[1750659134181,9.192,2256.0,2255.6,0.8057]
[1750659134582,1.955,2256.0,2255.6,0.8057]
[1750659135825,1.955,2256.0,2255.5,7.78624473]
[1750659135826,9.191,2256.1,2255.8,0.7511]
[1750659136188,1.954,2256.1,2255.8,0.7511]
[1750659137520,1.954,2256.1,2255.8,0.8108]
[1750659139322,1.954,2256.1,2255.8,0.7511]
[1750659141491,1.954,2256.1,2255.5,0.8409]
[1750659141723,1.954,2256.1,2255.5,0.7812]
[1750659141926,9.74024473,2256.1,2255.3,3.9412]
[1750659142139,10.0,2255.8,2255.1,0.7812]
[1750659142289,15.81844473,2255.7,2255.1,0.7812]
[1750659142603,1.954,2255.6,2255.1,0.7812]
[1750659144530,7.234,2255.5,2255.1,0.7812]
[1750659144836,7.234,2255.5,2255.1,1.64237867]
[1750659145235,7.234,2255.5,2255.1,0.7812]
[1750659148647,0.7635,2255.9,2255.1,7.78624473]
[1750659148944,9.59655243,2255.8,2255.2,0.8174]
[1750659149112,9.182,2255.8,2255.2,0.8174]
[1750659152342,9.182,2255.8,2255.3,0.0597]
[1750659152745,9.182,2255.8,2255.2,0.8174]
[1750659153153,9.182,2255.8,2255.3,0.0597]
[1750659153443,9.182,2255.8,2255.4,0.7967]
[1750659153643,9.182,2255.8,2255.5,0.0597]
[1750659157179,9.182,2255.8,2255.4,0.8564]
[1750659158184,9.182,2255.8,2255.4,0.7967]
[1750659161162,7.232,2255.7,2255.4,0.7967]
[1750659161483,7.232,2255.8,2255.4,1.65499447]
[1750659162498,1.948,2256.0,2255.6,0.767]
[1750659162821,7.232,2255.9,2255.6,0.767]
[1750659164270,9.179,2256.0,2255.6,0.767]
[1750659164908,7.231,2256.1,2255.8,0.767]
[1750659168122,7.231,2256.1,2255.6,0.8363]
[1750659168282,7.231,2256.1,2255.6,0.7775]
[1750659168679,0.41486738,2256.0,2255.6,0.7775]
[1750659168878,0.7664,2256.0,2255.4,0.7775]
[1750659169994,0.41488307,2255.9,2255.4,0.7775]
[1750659170182,10.7664,2256.0,2255.4,0.7775]
[1750659170386,0.41488918,2255.9,2255.4,0.7775]
[1750659170722,10.7664,2256.0,2255.4,0.7775]
[1750659171026,0.41503177,2255.9,2255.4,0.7775]
[1750659171211,10.41503177,2255.8,2255.2,0.7938]
[1750659171405,10.34313177,2255.7,2255.2,0.7938]
[1750659171610,9.9281,2255.7,2255.2,0.7938]
[1750659177121,9.9281,2255.7,2255.0,0.7963]
[1750659177122,17.71434473,2255.7,2255.0,0.7963]
[1750659177353,0.41510006,2255.6,2255.0,0.7963]
[1750659177652,8.20135965,2255.5,2255.0,0.7963]
[1750659177955,7.78624473,2255.5,2255.0,0.7963]
[1750659178261,0.41512497,2255.4,2255.0,0.7963]
[1750659178459,7.228,2255.3,2255.0,0.7963]
[1750659178621,1.948,2255.2,2255.0,0.7963]
[1750659178820,7.228,2255.1,2255.0,0.7963]
[1750659179031,7.228,2255.1,2255.0,0.8551]
[1750659181163,7.228,2255.1,2255.0,0.7963]
[1750659181858,7.228,2255.1,2254.7,0.0588]
[1750659182178,7.228,2255.1,2254.6,0.7904]
[1750659182474,7.228,2255.1,2254.6,1.64806447]
[1750659183869,7.228,2255.1,2254.6,0.7904]
[1750659193897,7.228,2255.1,2254.8,0.7552]
[1750659201610,7.228,2255.1,2254.4,0.43777532]
[1750659201611,0.8176,2255.0,2254.4,0.43777532]
[1750659201915,0.8176,2255.0,2254.2,15.23747509]
[1750659202215,0.8176,2255.0,2254.3,12.10073777]
[1750659206485,0.8176,2255.0,2254.3,12.55121021]
[1750659210224,7.228,2255.1,2254.2,0.8014]
[1750659210225,0.41576186,2254.9,2254.2,0.8014]
[1750659210423,0.8233,2255.0,2254.2,0.8014]
[1750659210600,0.8233,2254.7,2253.7,0.8109]
[1750659210801,1.934,2254.6,2253.7,10.8109]
[1750659211133,0.8025,2254.4,2253.7,0.8109]
[1750659211595,0.8025,2254.4,2253.7,10.8109]
[1750659212546,0.8025,2254.4,2253.8,0.0616]
[1750659212845,0.8025,2254.4,2253.8,0.44175957]
[1750659213023,0.8025,2254.4,2253.9,0.0616]
[1750659214547,0.8025,2254.4,2253.8,0.0616]
[1750659214757,0.8025,2254.4,2253.9,10.0]
[1750659214914,0.8025,2254.4,2254.0,0.0616]
[1750659215115,9.9595,2254.4,2253.9,10.0]
[1750659215344,0.8025,2254.4,2253.9,10.0]
[1750659215649,9.9595,2254.4,2254.0,0.0616]
[1750659216051,9.9595,2254.4,2253.8,0.0616]
[1750659217112,0.8025,2254.4,2253.8,1.14885]
[1750659217325,2.7365,2254.4,2253.9,0.0616]
[1750659218358,2.7365,2254.4,2253.8,1.08725]
[1750659219047,2.7365,2254.4,2253.7,0.8109]
[1750659219256,0.774,2254.3,2253.6,0.45291802]
[1750659219428,0.774,2254.3,2253.5,0.7803]
[1750659220765,0.774,2254.3,2253.6,7.83061311]
[1750659221437,0.774,2254.3,2253.6,7.78624473]
[1750659221633,0.774,2254.3,2253.6,7.83061312]
[1750659223164,0.774,2254.3,2253.7,0.86109131]
[1750659229095,7.223,2254.5,2254.0,7.78624473]
[1750659229096,0.7723,2254.5,2254.0,7.78624473]
[1750659229474,0.7723,2254.5,2254.0,7.83060696]
[1750659229669,1.934,2254.6,2254.0,7.78624473]
[1750659229900,0.7896,2254.7,2254.1,0.04435766]
[1750659230089,0.7896,2254.7,2254.1,0.9067179]
[1750659230292,0.7896,2255.0,2254.5,7.78624473]
[1750659230620,0.7896,2255.0,2254.6,0.7893]
[1750659232497,0.7896,2255.0,2254.7,0.0591]
[1750659233492,1.934,2255.2,2254.7,0.0591]
[1750659233698,12.7662,2255.2,2254.7,0.0591]
[1750659235305,2.7662,2255.2,2254.8,0.0591]
[1750659238411,2.7662,2255.2,2254.8,0.0591]
[1750659238596,2.7662,2255.2,2254.7,0.86789937]
[1750659238909,1.55816781,2255.8,2254.8,0.0443488]
[1750659238910,0.8131,2255.5,2254.8,0.0443488]
[1750659239108,9.152,2255.4,2254.9,0.7752]
[1750659239610,1.934,2255.4,2254.9,0.7752]
[1750659240315,0.7889,2255.7,2255.0,8.35604019]
[1750659240611,0.7889,2255.7,2255.1,0.7866]
[1750659242303,0.7889,2255.7,2255.1,1.22155827]
[1750659242877,0.7889,2255.7,2255.2,0.0591]
[1750659243277,8.0059,2255.7,2255.2,0.0591]
[1750659243695,7.217,2255.7,2255.2,0.0591]
[1750659243895,7.217,2255.7,2255.1,0.7866]
[1750659244095,7.217,2255.7,2255.1,1.91780524]
[1750659244492,7.217,2255.7,2255.2,0.0591]
[1750659244893,1.926,2255.8,2255.2,0.0591]
[1750659245129,9.142,2255.8,2255.2,0.0591]
[1750659246925,7.78624473,2255.6,2255.0,0.52545243]
[1750659247225,7.78624473,2255.4,2254.9,0.0591]
[1750659247593,7.78624473,2255.4,2254.7,3.57279937]
[1750659247799,7.78624473,2255.4,2254.7,1.64679937]
[1750659248019,0.7579,2255.3,2254.7,1.64679937]
[1750659248215,7.9729,2255.3,2254.7,1.64679937]
[1750659249097,7.78624473,2255.2,2254.4,0.7956]
[1750659250731,0.755,2255.1,2254.4,0.7956]
[1750659254527,7.78624473,2255.0,2254.1,10.7621]
[1750659254732,0.7532,2254.9,2254.1,10.7621]
[1750659254931,19.141,2255.3,2254.1,10.7621]
[1750659254932,0.7532,2254.7,2254.1,10.7621]
[1750659255230,0.7532,2254.7,2254.2,1.31290754]
[1750659255821,0.7532,2254.7,2254.0,12.36697535]
[1750659256137,0.7532,2254.7,2254.0,10.0]
[1750659256311,0.7532,2254.7,2254.0,14.43638983]
[1750659256503,7.9672,2254.7,2254.2,0.7902]
[1750659257515,7.9672,2254.7,2254.1,0.0606]
[1750659257716,7.9672,2254.7,2254.2,0.0606]
[1750659258819,0.7532,2254.7,2254.2,0.0606]
[1750659262249,9.14,2254.8,2254.2,0.0606]
[1750659262450,9.14,2254.8,2254.3,0.7567]
[1750659268149,9.14,2254.8,2254.1,10.48359827]
[1750659268352,9.14,2254.8,2254.2,1.09369889]
[1750659269362,9.14,2254.8,2254.3,0.7898]
[1750659271166,9.14,2254.8,2254.3,8.62040209]
[1750659271322,9.14,2254.8,2254.3,8.57604473]
[1750659271516,7.214,2254.8,2254.3,8.57604473]
[1750659271743,7.214,2254.8,2254.4,0.96697436]
[1750659273453,7.214,2254.8,2254.2,1.09369889]
[1750659274258,7.214,2254.8,2254.2,8.87994362]
[1750659275263,0.7899,2254.9,2254.4,7.78624473]
[1750659275565,0.7899,2254.9,2254.5,0.04435121]
[1750659276062,0.7899,2254.9,2254.6,7.78624473]
[1750659276277,1.92,2255.2,2254.8,8.58754473]
[1750659276561,0.804,2255.3,2254.8,8.58754473]
[1750659277430,0.804,2255.3,2254.9,0.0606]
[1750659278763,0.804,2255.3,2254.8,8.58754473]
[1750659279145,0.804,2255.3,2254.9,0.0606]
[1750659279331,0.804,2255.3,2255.0,0.0606]
[1750659279960,0.804,2255.3,2254.9,0.0606]
[1750659280466,0.804,2255.3,2254.7,0.78305959]
[1750659280655,0.804,2255.3,2254.8,0.0606]
[1750659284175,0.7755,2255.5,2254.9,0.8151]
[1750659284348,0.7755,2255.5,2254.9,0.85944636]
[1750659284549,0.7755,2255.5,2255.0,0.86456911]
[1750659286941,1.92,2255.6,2255.1,0.04434219]
[1750659287143,0.55,2256.2,2255.1,0.04434219]
[1750659287144,1.919,2255.9,2255.2,13.04353163]
[1750659287477,10.7967,2256.1,2255.3,0.04433559]
[1750659287478,1.919,2256.0,2255.3,0.04433559]
[1750659287642,1.919,2256.0,2255.2,13.48359889]
[1750659287842,1.919,2256.0,2255.3,1.34835989]
[1750659288342,1.919,2256.0,2255.5,0.7557]
[1750659289178,0.7731,2255.9,2255.2,0.44015131]
[1750659289364,0.7731,2255.9,2255.1,0.7557]
[1750659289568,0.7731,2255.9,2255.2,1.07557]
[1750659290760,0.7731,2255.9,2255.1,0.7557]
[1750659291081,0.7731,2255.7,2254.9,0.7557]
[1750659291246,7.207,2255.6,2254.9,0.7557]
[1750659292401,7.207,2255.6,2254.9,0.8178]
[1750659294680,7.207,2255.6,2255.1,7.78624473]
[1750659294976,7.207,2255.6,2255.3,0.0621]
[1750659295482,10.8099,2255.9,2255.3,0.0621]
[1750659295853,0.8099,2255.9,2255.3,0.0621]
[1750659298383,1.919,2256.1,2255.4,0.7959]
[1750659298589,9.124,2256.1,2255.4,0.7959]
[1750659298788,9.124,2256.1,2255.4,2.73242036]
[1750659299921,8.59964473,2255.9,2255.2,0.7802]
[1750659300763,9.124,2256.1,2255.3,0.87443914]
[1750659300764,9.8898,2256.1,2255.3,0.87443914]
[1750659300981,0.4145969,2256.0,2255.3,0.87443914]
[1750659301174,9.8898,2256.1,2255.3,5.30831745]
[1750659301489,17.78624473,2256.4,2255.7,0.8301]
[1750659301490,9.8828,2256.4,2255.7,0.8301]
[1750659301685,1.913,2256.4,2255.8,8.6478792]
[1750659301889,1.913,2256.4,2255.9,0.7544]
[1750659302469,1.913,2256.4,2256.0,0.0621]
[1750659303892,1.913,2256.4,2255.9,0.7544]
[1750659304098,1.913,2256.4,2255.9,0.8165]
[1750659304398,1.913,2256.4,2256.0,0.0621]
[1750659304603,7.78624473,2256.3,2255.9,0.7544]
[1750659304905,1.913,2256.4,2255.7,0.8351]
[1750659306201,0.7961,2256.3,2255.7,0.773]
[1750659307003,0.7961,2256.3,2255.7,0.8351]
[1750659307184,1.913,2256.4,2255.7,0.8351]
[1750659308289,1.913,2256.4,2255.7,1.69723447]
[1750659309298,1.913,2256.4,2255.7,1.63513447]
[1750659311103,10.755,2256.5,2255.8,0.7738]
[1750659311104,0.755,2256.5,2255.8,0.7738]
[1750659311313,7.202,2256.4,2255.8,0.7738]
[1750659316113,0.7505,2256.7,2255.8,0.7738]
[1750659316289,9.52831211,2256.6,2255.9,0.7643]
[1750659316491,0.41431211,2256.5,2256.0,0.85505447]
[1750659316913,9.114,2256.6,2256.0,0.85505447]
[1750659317214,0.41431135,2256.5,2256.0,0.85505447]
[1750659317418,9.114,2256.6,2256.0,0.85505447]
[1750659317601,0.41428169,2256.5,2256.0,0.85505447]
[1750659317799,0.41428169,2256.5,2255.9,0.7643]
[1750659318410,7.61428169,2256.5,2255.9,0.7643]
[1750659318591,7.2,2256.5,2255.9,0.7643]
[1750659321044,0.7505,2256.7,2255.9,0.7643]
[1750659321218,10.0,2256.5,2255.9,0.7643]
[1750659323138,7.78624473,2256.4,2255.9,0.7643]
[1750659323323,0.7907,2256.3,2255.7,0.825]
[1750659324238,10.0,2256.5,2255.7,0.8827]
[1750659324239,10.7508,2256.5,2255.7,0.8827]
[1750659324518,9.52708039,2256.4,2255.8,0.0577]
[1750659324699,9.112,2256.4,2255.9,0.766]
[1750659324899,9.112,2256.4,2255.9,0.8237]
[1750659325724,0.41511727,2256.3,2255.9,0.8237]
[1750659325906,9.112,2256.4,2255.9,0.8237]
[1750659326111,9.112,2256.4,2256.0,0.0577]
[1750659326516,9.112,2256.4,2255.9,0.766]
[1750659326741,7.199,2256.4,2256.0,0.0577]
[1750659328638,0.41587416,2256.3,2256.0,0.0577]
[1750659328844,7.199,2256.4,2256.0,0.0577]
[1750659329012,0.41587037,2256.3,2256.0,0.0577]
[1750659329215,7.199,2256.4,2256.0,0.0577]
[1750659329613,0.41587674,2256.3,2256.0,0.0577]
[1750659329813,7.199,2256.4,2255.9,0.766]
[1750659330044,0.41587692,2256.3,2255.9,0.766]
[1750659330238,7.199,2256.4,2255.9,0.766]
[1750659330407,0.41587927,2256.3,2255.9,0.766]
[1750659330612,7.199,2256.4,2255.9,0.766]
[1750659330840,0.41587743,2256.3,2255.9,0.766]
[1750659331032,7.199,2256.4,2255.9,0.766]
[1750659331214,0.41588232,2256.3,2255.9,0.766]
[1750659331413,7.199,2256.4,2255.9,0.766]
[1750659331914,0.41588375,2256.3,2255.9,0.766]
[1750659332116,7.199,2256.4,2255.9,0.766]
[1750659332318,0.41588194,2256.3,2255.9,0.766]
[1750659332521,7.199,2256.4,2255.9,0.766]
[1750659332719,0.41589031,2256.3,2255.9,0.766]
[1750659332935,7.199,2256.4,2255.9,0.766]
[1750659333141,0.41589198,2256.3,2255.9,0.766]
[1750659333445,7.198,2256.4,2255.9,0.766]
[1750659333615,0.41589135,2256.3,2255.9,0.766]
[1750659333822,7.198,2256.4,2255.9,0.766]
[1750659334052,0.41590568,2256.3,2255.9,0.766]
[1750659334254,0.41590114,2256.2,2255.9,0.766]
[1750659334452,7.198,2256.4,2255.9,0.766]
[1750659334651,0.41590726,2256.3,2255.9,0.766]
[1750659334854,7.198,2256.4,2255.9,0.766]
[1750659334855,0.41590726,2256.2,2255.9,0.766]
[1750659335056,7.198,2256.4,2255.9,0.766]
[1750659335255,0.41590937,2256.3,2255.9,0.766]
[1750659335477,0.41590937,2256.2,2255.9,0.766]
[1750659335627,7.198,2256.4,2255.9,0.766]
[1750659335828,0.41589766,2256.3,2255.9,0.766]
[1750659336030,0.41589766,2256.2,2255.9,0.766]
[1750659336227,7.198,2256.4,2255.9,0.766]
[1750659336442,0.41590118,2256.3,2255.9,0.766]
[1750659336767,7.198,2256.4,2255.9,0.766]
[1750659336952,0.41589706,2256.3,2255.9,0.766]
[1750659337129,7.198,2256.4,2255.9,0.766]
[1750659337321,0.41589028,2256.3,2255.9,0.766]
[1750659337526,7.198,2256.4,2256.0,0.0577]
[1750659337722,0.41589455,2256.3,2256.0,0.0577]
[1750659337922,7.198,2256.4,2256.0,0.0577]
[1750659338140,0.41588877,2256.3,2256.0,0.0577]
[1750659338340,7.198,2256.4,2256.0,0.0577]
[1750659338535,0.41594861,2256.3,2256.0,0.0577]
[1750659338839,7.198,2256.4,2256.0,0.0577]
[1750659339050,0.41595131,2256.3,2256.0,0.0577]
[1750659339262,7.198,2256.4,2255.9,0.766]
[1750659339568,0.41594538,2256.3,2256.0,0.0577]
[1750659339867,7.198,2256.4,2256.0,0.0577]
[1750659340068,0.41595001,2256.3,2256.0,0.0577]
[1750659340230,7.198,2256.4,2256.0,0.0577]
[1750659340426,0.41595351,2256.3,2256.0,0.0577]
[1750659340631,0.41595552,2256.2,2255.9,0.766]
[1750659340861,7.9776,2256.4,2255.9,0.766]
[1750659341062,0.41596448,2256.3,2255.9,0.766]
[1750659341371,0.4159563,2256.2,2255.9,0.766]
[1750659341579,7.9776,2256.4,2255.9,0.766]
[1750659341764,0.41595618,2256.3,2255.9,0.766]
[1750659341958,7.9776,2256.4,2255.9,0.766]
[1750659341959,0.41596237,2256.2,2255.9,0.766]
[1750659342159,7.9776,2256.4,2255.9,0.766]
[1750659342360,7.9776,2256.4,2255.9,0.8237]
[1750659342567,0.4159746,2256.3,2255.9,0.8237]
[1750659342750,0.4159746,2256.2,2255.9,0.8237]
[1750659342948,7.9776,2256.4,2255.9,0.8237]
[1750659343160,0.41598416,2256.3,2255.9,0.8237]
[1750659343332,0.41598416,2256.2,2255.9,0.8237]
[1750659343538,7.9776,2256.4,2255.9,0.8237]
[1750659343772,0.41598288,2256.3,2255.9,0.8237]
[1750659343947,0.41597662,2256.2,2255.9,0.8237]
[1750659344149,7.9776,2256.4,2255.9,0.8237]
[1750659344365,0.41594121,2256.3,2255.9,0.8237]
[1750659344549,0.41594121,2256.2,2255.9,0.8237]
[1750659344743,7.9776,2256.4,2255.9,0.8237]
[1750659345009,0.41593538,2256.3,2255.9,0.8237]
[1750659345276,0.41593523,2256.2,2255.9,0.8237]
[1750659345438,7.9776,2256.4,2255.9,0.8237]
[1750659345638,0.41593533,2256.3,2255.9,0.8237]
[1750659345938,0.41593533,2256.2,2255.9,0.8237]
[1750659346159,7.198,2256.4,2255.9,0.766]
[1750659346375,0.41591878,2256.3,2255.9,0.766]
[1750659346669,0.41591878,2256.2,2255.6,7.78624473]
[1750659346876,7.198,2256.4,2255.8,0.7788]
[1750659347039,0.41591899,2256.3,2255.8,0.7788]
[1750659347376,0.41591899,2256.2,2255.8,0.7788]
[1750659347674,7.198,2256.4,2255.8,0.7788]
[1750659347873,0.41590972,2256.3,2255.8,0.7788]
[1750659348040,0.41590972,2256.2,2255.8,0.7788]
[1750659348372,7.198,2256.4,2255.8,1.71316692]
[1750659348578,0.41591609,2256.3,2255.8,1.71316692]
[1750659348752,0.41591609,2256.2,2255.8,1.71316692]
[1750659349080,7.198,2256.4,2255.8,1.71316692]
[1750659349285,0.41591737,2256.3,2255.8,0.7788]
[1750659349463,0.41591737,2256.2,2255.8,0.7788]
[1750659349640,0.7587,2256.3,2255.8,0.7788]
[1750659349839,0.41591288,2256.2,2255.8,0.7788]